[Event "Late-Titled-Tuesday-Blitz-January-23-2024"]
[Site "Chess.com"]
[Date "2024.01.23"]
[Round "2"]
[White "IraZyne"]
[Black "StellarChess"]
[Result "0-1"]
[WhiteElo "2215"]
[BlackElo "2486"]
[TimeControl "180+1"]
[EndTime "14:18:00 PST"]
[Termination "StellarChess won by resignation"]

1. e4 {[%clk 0:03:00.9]} 1... a6 {[%clk 0:02:58.3]} 2. d4 {[%clk 0:02:57.4]}
2... c6 {[%clk 0:02:58.8]} 3. Nf3 {[%clk 0:02:53]} 3... d5 {[%clk 0:02:59.2]} 4.
Nc3 {[%clk 0:02:52.9]} 4... dxe4 {[%clk 0:02:59.2]} 5. Nxe4 {[%clk 0:02:52.4]}
5... Nf6 {[%clk 0:02:59.8]} 6. Bd3 {[%clk 0:02:48.8]} 6... Nxe4 {[%clk
0:02:59.3]} 7. Bxe4 {[%clk 0:02:48.5]} 7... Nd7 {[%clk 0:02:58.3]} 8. Be3 {[%clk
0:02:47.9]} 8... Nf6 {[%clk 0:02:58.7]} 9. Bd3 {[%clk 0:02:48]} 9... Bg4 {[%clk
0:02:59]} 10. c3 {[%clk 0:02:47.5]} 10... e6 {[%clk 0:02:59.1]} 11. h3 {[%clk
0:02:47.7]} 11... Bh5 {[%clk 0:02:59]} 12. O-O {[%clk 0:02:47.7]} 12... Qc7
{[%clk 0:02:59.1]} 13. Be2 {[%clk 0:02:45.6]} 13... Bd6 {[%clk 0:02:58.5]} 14.
Qd2 {[%clk 0:02:44.3]} 14... Bg6 {[%clk 0:02:57.7]} 15. Rfe1 {[%clk 0:02:41.4]}
15... Ne4 {[%clk 0:02:54.6]} 16. Qd1 {[%clk 0:02:39.6]} 16... O-O {[%clk
0:02:53.8]} 17. Bf1 {[%clk 0:02:38.2]} 17... Rfd8 {[%clk 0:02:50.6]} 18. Rc1
{[%clk 0:02:36.9]} 18... c5 {[%clk 0:02:50.7]} 19. Qb3 {[%clk 0:02:34]} 19... b5
{[%clk 0:02:48.3]} 20. c4 {[%clk 0:02:33.8]} 20... b4 {[%clk 0:02:48.9]} 21. d5
{[%clk 0:02:30.4]} 21... exd5 {[%clk 0:02:44.9]} 22. cxd5 {[%clk 0:02:30.4]}
22... Qb6 {[%clk 0:02:39.1]} 23. Bc4 {[%clk 0:02:21.2]} 23... a5 {[%clk
0:02:26.1]} 24. a4 {[%clk 0:02:15.9]} 24... Rac8 {[%clk 0:02:18.4]} 25. Nd2
{[%clk 0:02:15]} 25... Nxd2 {[%clk 0:02:18.5]} 26. Bxd2 {[%clk 0:02:15.1]} 26...
Re8 {[%clk 0:02:15.8]} 27. Be3 {[%clk 0:02:14.6]} 27... Qc7 {[%clk 0:02:15.3]}
28. Re2 {[%clk 0:02:14.2]} 28... h6 {[%clk 0:02:14]} 29. Rce1 {[%clk 0:02:13.9]}
29... Re7 {[%clk 0:02:13.4]} 30. Qd1 {[%clk 0:02:07.2]} 30... Rce8 {[%clk
0:02:06.5]} 31. b3 {[%clk 0:02:07.2]} 31... Bh5 {[%clk 0:02:01.5]} 32. g4 {[%clk
0:02:03.7]} 32... Bg6 {[%clk 0:01:59.3]} 33. Bd2 {[%clk 0:01:58.1]} 33... Bh2+
{[%clk 0:01:56.7]} 34. Kf1 {[%clk 0:01:56]} 34... Bd6 {[%clk 0:01:48.6]} 35.
Rxe7 {[%clk 0:01:54.7]} 35... Rxe7 {[%clk 0:01:49]} 36. Rxe7 {[%clk 0:01:54.5]}
36... Qxe7 {[%clk 0:01:49.7]} 37. Qe2 {[%clk 0:01:54.7]} 37... Qf6 {[%clk
0:01:47.8]} 38. Kg2 {[%clk 0:01:51]} 38... Be5 {[%clk 0:01:38.9]} 39. Qe3 {[%clk
0:01:42.5]} 39... Bd4 {[%clk 0:01:32.9]} 40. Qe8+ {[%clk 0:01:41.8]} 40... Kh7
{[%clk 0:01:32.7]} 41. f4 {[%clk 0:01:41.7]} 41... Qh4 {[%clk 0:01:24.6]} 42.
Qe2 {[%clk 0:01:41.2]} 42... f5 {[%clk 0:01:20.5]} 43. Be1 {[%clk 0:01:31.7]}
43... Qf6 {[%clk 0:01:19.2]} 44. Qe6 {[%clk 0:01:26.9]} 44... fxg4 {[%clk
0:01:15.6]} 45. Qxf6 {[%clk 0:01:26.3]} 45... Bxf6 {[%clk 0:01:16.5]} 46. hxg4
{[%clk 0:01:26]} 46... Be4+ {[%clk 0:01:17.1]} 47. Kg3 {[%clk 0:01:23.4]} 47...
g6 {[%clk 0:01:17.4]} 48. Bf2 {[%clk 0:01:22.3]} 48... Be7 {[%clk 0:01:14.6]}
49. Be3 {[%clk 0:01:20]} 49... Bd6 {[%clk 0:01:13.9]} 50. Kf2 {[%clk 0:01:19.2]}
50... h5 {[%clk 0:01:13.3]} 51. gxh5 {[%clk 0:01:18.8]} 51... gxh5 {[%clk
0:01:14.2]} 52. Kg3 {[%clk 0:01:18.7]} 52... Kg6 {[%clk 0:01:14]} 53. Kh4 {[%clk
0:01:18.8]} 53... Be7+ {[%clk 0:01:13.8]} 54. Kg3 {[%clk 0:01:17.7]} 54... h4+
{[%clk 0:01:14.1]} 55. Kh2 {[%clk 0:01:12.1]} 55... Kf5 {[%clk 0:01:12.1]} 56.
Bd2 {[%clk 0:01:06.9]} 56... Kg4 {[%clk 0:01:10]} 57. Be2+ {[%clk 0:01:05.2]}
57... Bf3 {[%clk 0:01:03.7]} 58. Bf1 {[%clk 0:00:58]} 58... Bxd5 {[%clk
0:01:02.1]} 59. Be2+ {[%clk 0:00:56.8]} 59... Bf3 {[%clk 0:01:00]} 60. Bc4
{[%clk 0:00:54.7]} 60... Be4 {[%clk 0:00:55.4]} 61. Be2+ {[%clk 0:00:50.7]}
61... Kf5 {[%clk 0:00:51.7]} 62. Kh3 {[%clk 0:00:50.2]} 62... Kg6 {[%clk
0:00:49.4]} 63. Be1 {[%clk 0:00:43.5]} 63... Bf5+ {[%clk 0:00:46.8]} 64. Bg4
{[%clk 0:00:43.4]} 64... Bf6 {[%clk 0:00:40.6]} 65. Bxh4 {[%clk 0:00:40.8]}
65... Bxh4 {[%clk 0:00:34.7]} 66. Kxh4 {[%clk 0:00:40.6]} 66... Bxg4 {[%clk
0:00:35.6]} 67. Kxg4 {[%clk 0:00:40.5]} 67... c4 {[%clk 0:00:36.5]} 68. f5+
{[%clk 0:00:39.3]} 68... Kf6 {[%clk 0:00:35.4]} 69. bxc4 {[%clk 0:00:39.6]}
69... b3 {[%clk 0:00:36.3]} 70. c5 {[%clk 0:00:40]} 70... b2 {[%clk 0:00:36]}
71. c6 {[%clk 0:00:40.5]} 71... b1=Q {[%clk 0:00:36.7]} 72. c7 {[%clk
0:00:40.8]} 72... Qxf5+ {[%clk 0:00:36.5]} 0-1

[Event "Late-Titled-Tuesday-Blitz-January-23-2024"]
[Site "Chess.com"]
[Date "2024.01.23"]
[Round "2"]
[White "LyonBeast"]
[Black "Goryachkina"]
[Result "1-0"]
[WhiteElo "3168"]
[BlackElo "2694"]
[TimeControl "180+1"]
[EndTime "14:18:02 PST"]
[Termination "LyonBeast won on time"]

1. e4 {[%clk 0:03:00.9]} 1... c5 {[%clk 0:02:59.5]} 2. Nf3 {[%clk 0:02:57.8]}
2... e6 {[%clk 0:02:59.5]} 3. d4 {[%clk 0:02:57]} 3... cxd4 {[%clk 0:02:59.7]}
4. Nxd4 {[%clk 0:02:57.9]} 4... Nc6 {[%clk 0:02:59.9]} 5. Bf4 {[%clk 0:02:55.6]}
5... d6 {[%clk 0:02:49.1]} 6. Nxc6 {[%clk 0:02:53.6]} 6... bxc6 {[%clk
0:02:48.9]} 7. Nd2 {[%clk 0:02:54.3]} 7... e5 {[%clk 0:02:39.1]} 8. Be3 {[%clk
0:02:53.8]} 8... h6 {[%clk 0:02:37.8]} 9. c4 {[%clk 0:02:50]} 9... Nf6 {[%clk
0:02:34.3]} 10. f3 {[%clk 0:02:43.2]} 10... Be7 {[%clk 0:02:33.7]} 11. Bd3
{[%clk 0:02:42]} 11... O-O {[%clk 0:02:32.7]} 12. O-O {[%clk 0:02:42]} 12... d5
{[%clk 0:02:24.9]} 13. cxd5 {[%clk 0:02:36.4]} 13... cxd5 {[%clk 0:02:25]} 14.
Qe2 {[%clk 0:02:32.7]} 14... Bb7 {[%clk 0:02:20.2]} 15. Rac1 {[%clk 0:02:27.4]}
15... dxe4 {[%clk 0:02:05.4]} 16. Nxe4 {[%clk 0:02:23.7]} 16... Nxe4 {[%clk
0:02:04.8]} 17. Bxe4 {[%clk 0:02:20.9]} 17... Bxe4 {[%clk 0:02:02]} 18. fxe4
{[%clk 0:02:21.8]} 18... Bg5 {[%clk 0:01:58.9]} 19. Rfd1 {[%clk 0:02:22]} 19...
Bxe3+ {[%clk 0:01:53.3]} 20. Qxe3 {[%clk 0:02:22.9]} 20... Qa5 {[%clk 0:01:53]}
21. a3 {[%clk 0:02:21.4]} 21... Rac8 {[%clk 0:01:50.1]} 22. b4 {[%clk
0:02:11.3]} 22... Qa4 {[%clk 0:01:43.2]} 23. Kf2 {[%clk 0:02:11.2]} 23... a5
{[%clk 0:01:29.3]} 24. bxa5 {[%clk 0:02:05.7]} 24... Qxa5 {[%clk 0:01:28.6]} 25.
Rd5 {[%clk 0:02:04.2]} 25... Qa6 {[%clk 0:01:21.8]} 26. Rcd1 {[%clk 0:02:02.2]}
26... Rc2+ {[%clk 0:01:19.6]} 27. R1d2 {[%clk 0:01:56.5]} 27... Rfc8 {[%clk
0:01:13.5]} 28. Rd3 {[%clk 0:01:33.9]} 28... Qa4 {[%clk 0:00:57.2]} 29. h3
{[%clk 0:01:29.7]} 29... Qa6 {[%clk 0:00:38.4]} 30. Kg3 {[%clk 0:01:23.8]} 30...
Kh7 {[%clk 0:00:27.2]} 31. Qf3 {[%clk 0:01:19.8]} 31... Qg6+ {[%clk 0:00:17.8]}
32. Kh2 {[%clk 0:01:19.9]} 32... Rxd2 {[%clk 0:00:18.1]} 33. Rxd2 {[%clk
0:01:20.8]} 33... Rc4 {[%clk 0:00:18.5]} 34. Re2 {[%clk 0:01:18.8]} 34... Ra4
{[%clk 0:00:18.7]} 35. Re3 {[%clk 0:01:14]} 35... f6 {[%clk 0:00:14.1]} 36. Qe2
{[%clk 0:01:02.7]} 36... Qg5 {[%clk 0:00:13.6]} 37. Rf3 {[%clk 0:00:56.3]} 37...
Qg6 {[%clk 0:00:11.4]} 38. Re3 {[%clk 0:00:56.8]} 38... Qg5 {[%clk 0:00:11.7]}
39. g3 {[%clk 0:00:56.1]} 39... h5 {[%clk 0:00:11.3]} 40. h4 {[%clk 0:00:56.2]}
40... Qg4 {[%clk 0:00:11.7]} 41. Qxg4 {[%clk 0:00:51.9]} 41... hxg4 {[%clk
0:00:11.6]} 42. Kg2 {[%clk 0:00:52.8]} 42... Kg6 {[%clk 0:00:09.9]} 43. Kf2
{[%clk 0:00:53.1]} 43... f5 {[%clk 0:00:09.8]} 44. exf5+ {[%clk 0:00:52.6]}
44... Kxf5 {[%clk 0:00:10.2]} 45. Ke2 {[%clk 0:00:52]} 45... e4 {[%clk
0:00:08.9]} 46. Rb3 {[%clk 0:00:52.1]} 46... Ke5 {[%clk 0:00:04.5]} 47. Ke3
{[%clk 0:00:52.5]} 47... Kd5 {[%clk 0:00:04.9]} 48. Rb5+ {[%clk 0:00:52.3]}
48... Kc6 {[%clk 0:00:04.1]} 49. Re5 {[%clk 0:00:49.3]} 49... Rxa3+ {[%clk
0:00:03.5]} 50. Kf4 {[%clk 0:00:50]} 50... Kd6 {[%clk 0:00:03.3]} 51. Rxe4
{[%clk 0:00:49]} 51... Kd5 {[%clk 0:00:02.7]} 52. Re5+ {[%clk 0:00:47.7]} 52...
Kd6 {[%clk 0:00:02.8]} 53. Re1 {[%clk 0:00:47.1]} 53... Ra4+ {[%clk 0:00:01.9]}
54. Re4 {[%clk 0:00:45.2]} 54... Ra3 {[%clk 0:00:02.1]} 55. Kxg4 {[%clk
0:00:44.8]} 55... Kd5 {[%clk 0:00:01.7]} 56. Re7 {[%clk 0:00:44.7]} 1-0

[Event "Late-Titled-Tuesday-Blitz-January-23-2024"]
[Site "Chess.com"]
[Date "2024.01.23"]
[Round "2"]
[White "deloewre"]
[Black "VitaliyChayka"]
[Result "0-1"]
[WhiteElo "1996"]
[BlackElo "2444"]
[TimeControl "180+1"]
[EndTime "14:18:03 PST"]
[Termination "VitaliyChayka won on time"]

1. d4 {[%clk 0:03:00.9]} 1... d6 {[%clk 0:02:54.1]} 2. c4 {[%clk 0:02:59]} 2...
e5 {[%clk 0:02:52.6]} 3. Nf3 {[%clk 0:02:57.6]} 3... e4 {[%clk 0:02:49.1]} 4.
Ng5 {[%clk 0:02:55.9]} 4... f5 {[%clk 0:02:47.7]} 5. Nc3 {[%clk 0:02:53.7]} 5...
Nf6 {[%clk 0:02:47.3]} 6. g3 {[%clk 0:02:51.9]} 6... h6 {[%clk 0:02:46.1]} 7.
Nh3 {[%clk 0:02:50.7]} 7... c6 {[%clk 0:02:41.4]} 8. Bg2 {[%clk 0:02:47]} 8...
Be7 {[%clk 0:02:40.1]} 9. O-O {[%clk 0:02:36.7]} 9... O-O {[%clk 0:02:39.5]} 10.
d5 {[%clk 0:02:34.5]} 10... c5 {[%clk 0:02:38.4]} 11. f3 {[%clk 0:02:31.2]}
11... exf3 {[%clk 0:02:32.8]} 12. exf3 {[%clk 0:02:29.9]} 12... Nbd7 {[%clk
0:02:13.9]} 13. f4 {[%clk 0:02:17]} 13... Ng4 {[%clk 0:02:11.9]} 14. Nf2 {[%clk
0:02:12.2]} 14... Ndf6 {[%clk 0:02:11.5]} 15. Nxg4 {[%clk 0:02:08]} 15... Nxg4
{[%clk 0:02:12.4]} 16. h3 {[%clk 0:02:07.5]} 16... Nf6 {[%clk 0:02:10.9]} 17.
Re1 {[%clk 0:02:03.9]} 17... a6 {[%clk 0:02:01.3]} 18. a4 {[%clk 0:01:59.6]}
18... Rb8 {[%clk 0:01:58.7]} 19. Be3 {[%clk 0:01:57.9]} 19... Bd7 {[%clk
0:01:55.9]} 20. a5 {[%clk 0:01:53.3]} 20... b6 {[%clk 0:01:54.7]} 21. axb6
{[%clk 0:01:52.4]} 21... Rxb6 {[%clk 0:01:55.6]} 22. Ra2 {[%clk 0:01:47.4]}
22... Re8 {[%clk 0:01:51.5]} 23. Bf2 {[%clk 0:01:41.8]} 23... Qb8 {[%clk
0:01:48.5]} 24. Qc2 {[%clk 0:01:36.5]} 24... Bf8 {[%clk 0:01:36.9]} 25. Rxe8
{[%clk 0:01:31.7]} 25... Bxe8 {[%clk 0:01:37.8]} 26. Qxf5 {[%clk 0:01:25.8]}
26... Rxb2 {[%clk 0:01:25.6]} 27. Rxb2 {[%clk 0:01:24.6]} 27... Qxb2 {[%clk
0:01:24.9]} 28. Ne4 {[%clk 0:01:23.7]} 28... Bf7 {[%clk 0:00:55.7]} 29. g4
{[%clk 0:01:18.5]} 29... Nxe4 {[%clk 0:00:47.5]} 30. Bxe4 {[%clk 0:01:08.7]}
30... g6 {[%clk 0:00:47.3]} 31. Qc8 {[%clk 0:00:59]} 31... a5 {[%clk 0:00:46.1]}
32. f5 {[%clk 0:00:51]} 32... Qf6 {[%clk 0:00:36.4]} 33. fxg6 {[%clk 0:00:46.3]}
33... Bxg6 {[%clk 0:00:37.3]} 34. Bxg6 {[%clk 0:00:34.3]} 34... Qxg6 {[%clk
0:00:38.2]} 35. Qa8 {[%clk 0:00:22.2]} 35... Qb1+ {[%clk 0:00:36]} 36. Kh2
{[%clk 0:00:20.1]} 36... Qb4 {[%clk 0:00:35]} 37. Be3 {[%clk 0:00:13.4]} 37...
Qb2+ {[%clk 0:00:25.1]} 38. Kg3 {[%clk 0:00:09.5]} 38... Qe5+ {[%clk 0:00:24.4]}
39. Bf4 {[%clk 0:00:07.6]} 39... Qc3+ {[%clk 0:00:24.2]} 40. Kh4 {[%clk
0:00:04.3]} 40... Qf6+ {[%clk 0:00:23.8]} 41. Kg3 {[%clk 0:00:03.8]} 41... Qc3+
{[%clk 0:00:23.6]} 42. Kh4 {[%clk 0:00:03.4]} 42... Qe1+ {[%clk 0:00:19.8]} 43.
Kh5 {[%clk 0:00:02.9]} 43... Qe7 {[%clk 0:00:12.5]} 0-1

[Event "Late-Titled-Tuesday-Blitz-January-23-2024"]
[Site "Chess.com"]
[Date "2024.01.23"]
[Round "2"]
[White "aghasiyevkamal"]
[Black "FabianoCaruana"]
[Result "0-1"]
[WhiteElo "2636"]
[BlackElo "3032"]
[TimeControl "180+1"]
[EndTime "14:18:15 PST"]
[Termination "FabianoCaruana won on time"]

1. e4 {[%clk 0:03:00.2]} 1... e6 {[%clk 0:03:00.2]} 2. d4 {[%clk 0:02:59.3]}
2... d5 {[%clk 0:03:01.1]} 3. exd5 {[%clk 0:02:59.3]} 3... exd5 {[%clk
0:03:00.8]} 4. Nf3 {[%clk 0:02:59.3]} 4... Nf6 {[%clk 0:03:00.9]} 5. Bd3 {[%clk
0:02:58.6]} 5... Bd6 {[%clk 0:03:01.6]} 6. O-O {[%clk 0:02:57.7]} 6... O-O
{[%clk 0:03:02.3]} 7. Bg5 {[%clk 0:02:55.7]} 7... Bg4 {[%clk 0:03:02.4]} 8. Nbd2
{[%clk 0:02:55.7]} 8... Nbd7 {[%clk 0:03:02.6]} 9. c3 {[%clk 0:02:54.4]} 9... c6
{[%clk 0:03:00.7]} 10. Qc2 {[%clk 0:02:54.2]} 10... Qc7 {[%clk 0:02:59.6]} 11.
h3 {[%clk 0:02:46.8]} 11... Bh5 {[%clk 0:02:59.5]} 12. Rae1 {[%clk 0:02:45.8]}
12... Bg6 {[%clk 0:02:58.5]} 13. Nh4 {[%clk 0:02:42]} 13... Rfe8 {[%clk
0:02:58.2]} 14. Nf5 {[%clk 0:02:40]} 14... Bf8 {[%clk 0:02:51.7]} 15. Bh4 {[%clk
0:02:36.1]} 15... Nh5 {[%clk 0:02:49.1]} 16. Nf3 {[%clk 0:02:10.3]} 16... c5
{[%clk 0:02:23.5]} 17. Ne3 {[%clk 0:01:38.9]} 17... Bxd3 {[%clk 0:02:14.7]} 18.
Qxd3 {[%clk 0:01:38.9]} 18... Nf4 {[%clk 0:02:13.6]} 19. Qd2 {[%clk 0:01:38.3]}
19... cxd4 {[%clk 0:02:00.8]} 20. Nxd4 {[%clk 0:01:13.9]} 20... Nc5 {[%clk
0:01:59.5]} 21. Bg3 {[%clk 0:00:51.7]} 21... Ne4 {[%clk 0:01:58.7]} 22. Nxd5
{[%clk 0:00:49.9]} 22... Nxd2 {[%clk 0:01:43]} 23. Nxc7 {[%clk 0:00:49.4]} 23...
Nxf1 {[%clk 0:01:42.1]} 24. Rxe8 {[%clk 0:00:49.1]} 24... Rxe8 {[%clk
0:01:41.4]} 25. Nxe8 {[%clk 0:00:49.2]} 25... Nxg3 {[%clk 0:01:41.6]} 26. fxg3
{[%clk 0:00:48.8]} 26... Nd3 {[%clk 0:01:23.6]} 27. b3 {[%clk 0:00:44.9]} 27...
Bc5 {[%clk 0:01:17.4]} 28. Kf1 {[%clk 0:00:33.3]} 28... Nc1 {[%clk 0:01:16.7]}
29. Ne2 {[%clk 0:00:17.8]} 29... Nxa2 {[%clk 0:01:03.3]} 30. Ke1 {[%clk
0:00:17.8]} 30... b5 {[%clk 0:00:41.1]} 31. b4 {[%clk 0:00:16.5]} 31... Bb6
{[%clk 0:00:36.4]} 32. Nd6 {[%clk 0:00:12.7]} 32... a5 {[%clk 0:00:34.7]} 33.
bxa5 {[%clk 0:00:10.2]} 33... Bxa5 {[%clk 0:00:35.6]} 34. Nxb5 {[%clk
0:00:10.4]} 34... Kf8 {[%clk 0:00:32.2]} 35. Kd1 {[%clk 0:00:10.8]} 35... Ke7
{[%clk 0:00:32.4]} 36. Kc2 {[%clk 0:00:11]} 36... Ke6 {[%clk 0:00:32.5]} 37. Kb3
{[%clk 0:00:10.7]} 37... Nxc3 {[%clk 0:00:32.7]} 38. Nbxc3 {[%clk 0:00:07.8]}
38... Ke5 {[%clk 0:00:32.9]} 39. Kc4 {[%clk 0:00:08.1]} 39... f5 {[%clk
0:00:32.6]} 40. Nd5 {[%clk 0:00:06.8]} 40... g5 {[%clk 0:00:31.1]} 41. g4 {[%clk
0:00:05.8]} 41... fxg4 {[%clk 0:00:21.8]} 42. hxg4 {[%clk 0:00:06.7]} 42... Ke4
{[%clk 0:00:22.2]} 43. Nf6+ {[%clk 0:00:06.3]} 43... Ke3 {[%clk 0:00:22.4]} 44.
Nd4 {[%clk 0:00:06]} 44... Kf4 {[%clk 0:00:20.4]} 45. Kd3 {[%clk 0:00:03.9]}
45... Kg3 {[%clk 0:00:15.1]} 46. Ne2+ {[%clk 0:00:03.5]} 46... Kxg2 {[%clk
0:00:14.5]} 47. Ke4 {[%clk 0:00:04.2]} 47... Kf2 {[%clk 0:00:12.3]} 48. Nd4
{[%clk 0:00:03.9]} 48... Bc3 {[%clk 0:00:10.9]} 49. Nxh7 {[%clk 0:00:02.8]}
49... Kg3 {[%clk 0:00:10.7]} 50. Nf6 {[%clk 0:00:02.9]} 50... Ba1 {[%clk
0:00:10]} 0-1

[Event "Late-Titled-Tuesday-Blitz-January-23-2024"]
[Site "Chess.com"]
[Date "2024.01.23"]
[Round "2"]
[White "Nouali_Mohamed"]
[Black "GMG"]
[Result "1-0"]
[WhiteElo "2558"]
[BlackElo "2775"]
[TimeControl "180+1"]
[EndTime "14:18:16 PST"]
[Termination "Nouali_Mohamed won on time"]

1. e4 {[%clk 0:03:00]} 1... c5 {[%clk 0:02:59.8]} 2. Nf3 {[%clk 0:02:59.4]} 2...
e6 {[%clk 0:03:00.4]} 3. d4 {[%clk 0:02:59.6]} 3... cxd4 {[%clk 0:03:01.3]} 4.
Nxd4 {[%clk 0:03:00.5]} 4... Nc6 {[%clk 0:03:01.9]} 5. Nc3 {[%clk 0:03:00.5]}
5... Qc7 {[%clk 0:03:02.1]} 6. Be3 {[%clk 0:03:00.3]} 6... a6 {[%clk 0:03:02]}
7. Qf3 {[%clk 0:03:00.6]} 7... Nf6 {[%clk 0:03:01.8]} 8. O-O-O {[%clk
0:02:59.6]} 8... h5 {[%clk 0:03:01.4]} 9. h3 {[%clk 0:02:53.5]} 9... Ne5 {[%clk
0:03:01.4]} 10. Qg3 {[%clk 0:02:53.7]} 10... h4 {[%clk 0:02:55.2]} 11. Qh2
{[%clk 0:02:53]} 11... b5 {[%clk 0:02:52.4]} 12. Bxb5 {[%clk 0:02:23.1]} 12...
axb5 {[%clk 0:02:50.4]} 13. Ndxb5 {[%clk 0:02:24]} 13... Qb8 {[%clk 0:02:47.7]}
14. Bf4 {[%clk 0:01:16.4]} 14... d6 {[%clk 0:02:37.2]} 15. Rd4 {[%clk
0:01:12.1]} 15... Bd7 {[%clk 0:02:24.4]} 16. a4 {[%clk 0:01:10.9]} 16... Ra6
{[%clk 0:01:42.6]} 17. Rhd1 {[%clk 0:01:09.3]} 17... Rh5 {[%clk 0:01:40.9]} 18.
f3 {[%clk 0:00:53.7]} 18... g5 {[%clk 0:01:18.8]} 19. Rxd6 {[%clk 0:00:40.2]}
19... Bxd6 {[%clk 0:01:02.1]} 20. Rxd6 {[%clk 0:00:34.2]} 20... gxf4 {[%clk
0:00:56.4]} 21. Rxa6 {[%clk 0:00:32.9]} 21... Nc6 {[%clk 0:00:42.4]} 22. Qg1
{[%clk 0:00:29.5]} 22... Kf8 {[%clk 0:00:36.7]} 23. b3 {[%clk 0:00:09.6]} 23...
Kg7 {[%clk 0:00:32.8]} 24. Qf2 {[%clk 0:00:08.5]} 24... Qe5 {[%clk 0:00:26.7]}
25. Kb1 {[%clk 0:00:06.1]} 25... Rg5 {[%clk 0:00:26.8]} 26. Rb6 {[%clk
0:00:05.4]} 26... Ng8 {[%clk 0:00:15.7]} 27. Rb7 {[%clk 0:00:05.5]} 27... Be8
{[%clk 0:00:14.6]} 28. Qd2 {[%clk 0:00:05.7]} 28... Nge7 {[%clk 0:00:12]} 29.
Nd6 {[%clk 0:00:04.1]} 29... Kf8 {[%clk 0:00:11.8]} 30. Nc4 {[%clk 0:00:03.6]}
30... Qc5 {[%clk 0:00:10.4]} 31. Nb5 {[%clk 0:00:03.1]} 31... f6 {[%clk
0:00:06.8]} 32. Kb2 {[%clk 0:00:02.6]} 32... Bf7 {[%clk 0:00:04.2]} 33. Qd6
{[%clk 0:00:02.6]} 33... Qxd6 {[%clk 0:00:03.4]} 34. Nbxd6 {[%clk 0:00:03.5]}
34... Rxg2 {[%clk 0:00:04]} 35. b4 {[%clk 0:00:03.3]} 35... Nd4 {[%clk
0:00:03.8]} 36. Na3 {[%clk 0:00:02.8]} 36... Nec6 {[%clk 0:00:03]} 37. b5 {[%clk
0:00:03.3]} 37... Ne5 {[%clk 0:00:02.6]} 38. b6 {[%clk 0:00:03.1]} 38... Nexf3
{[%clk 0:00:02.7]} 39. Rb8+ {[%clk 0:00:04]} 39... Ke7 {[%clk 0:00:02.7]} 40.
Nxf7 {[%clk 0:00:04.6]} 40... Kxf7 {[%clk 0:00:02.8]} 41. b7 {[%clk 0:00:05.5]}
41... Nc6 {[%clk 0:00:02.8]} 42. Rc8 {[%clk 0:00:06.4]} 42... Nfe5 {[%clk
0:00:03]} 43. Rc7+ {[%clk 0:00:06.4]} 43... Kg6 {[%clk 0:00:03]} 44. Nb5 {[%clk
0:00:07.3]} 44... f3 {[%clk 0:00:02.6]} 45. Nd4 {[%clk 0:00:06.8]} 1-0

[Event "Late-Titled-Tuesday-Blitz-January-23-2024"]
[Site "Chess.com"]
[Date "2024.01.23"]
[Round "2"]
[White "SergioMoralesG"]
[Black "Jem"]
[Result "1-0"]
[WhiteElo "2465"]
[BlackElo "2149"]
[TimeControl "180+1"]
[EndTime "14:18:16 PST"]
[Termination "SergioMoralesG won on time"]

1. d4 {[%clk 0:03:00.9]} 1... Nf6 {[%clk 0:02:59.6]} 2. c4 {[%clk 0:03:00.8]}
2... g6 {[%clk 0:02:59.9]} 3. Nc3 {[%clk 0:03:00.3]} 3... Bg7 {[%clk 0:03:00.2]}
4. Nf3 {[%clk 0:03:00.8]} 4... d6 {[%clk 0:03:00.3]} 5. e4 {[%clk 0:03:01]} 5...
O-O {[%clk 0:03:00.1]} 6. Be2 {[%clk 0:03:01.4]} 6... e5 {[%clk 0:02:59.7]} 7.
Be3 {[%clk 0:03:01.8]} 7... Nc6 {[%clk 0:02:57.4]} 8. d5 {[%clk 0:03:01.8]} 8...
Ne7 {[%clk 0:02:57.5]} 9. Nd2 {[%clk 0:03:02.4]} 9... Nd7 {[%clk 0:02:53.2]} 10.
b4 {[%clk 0:03:01.8]} 10... a5 {[%clk 0:02:52.3]} 11. a3 {[%clk 0:03:02.3]}
11... f5 {[%clk 0:02:49]} 12. f3 {[%clk 0:03:01.8]} 12... f4 {[%clk 0:02:49.2]}
13. Bf2 {[%clk 0:03:01.7]} 13... g5 {[%clk 0:02:49.2]} 14. c5 {[%clk 0:03:01.2]}
14... Ng6 {[%clk 0:02:38.3]} 15. cxd6 {[%clk 0:02:59.3]} 15... cxd6 {[%clk
0:02:38.3]} 16. Nb5 {[%clk 0:02:59]} 16... Nf6 {[%clk 0:02:34.8]} 17. Nc4 {[%clk
0:02:41.7]} 17... Ne8 {[%clk 0:02:28.8]} 18. Nb6 {[%clk 0:02:40.8]} 18... Bd7
{[%clk 0:02:17.1]} 19. Nxa8 {[%clk 0:02:37.2]} 19... Qxa8 {[%clk 0:02:18]} 20.
Nc7 {[%clk 0:02:32.3]} 20... Nxc7 {[%clk 0:02:12.1]} 21. O-O {[%clk 0:02:20.9]}
21... Nb5 {[%clk 0:02:00.4]} 22. Qd3 {[%clk 0:02:12.3]} 22... Nd4 {[%clk
0:01:58.9]} 23. Bxd4 {[%clk 0:01:44.5]} 23... exd4 {[%clk 0:01:59.8]} 24. Kh1
{[%clk 0:01:44.3]} 24... Ne5 {[%clk 0:01:51]} 25. Qd2 {[%clk 0:01:34.9]} 25...
d3 {[%clk 0:01:49.6]} 26. Bxd3 {[%clk 0:01:31]} 26... Nxd3 {[%clk 0:01:49.3]}
27. Qxd3 {[%clk 0:01:31.9]} 27... Bxa1 {[%clk 0:01:48.2]} 28. Rxa1 {[%clk
0:01:32.8]} 28... axb4 {[%clk 0:01:47.6]} 29. h4 {[%clk 0:01:24.8]} 29... bxa3
{[%clk 0:01:36.5]} 30. hxg5 {[%clk 0:01:18.1]} 30... b5 {[%clk 0:01:29.2]} 31.
Rxa3 {[%clk 0:01:16.6]} 31... Qb7 {[%clk 0:01:25.6]} 32. Qd4 {[%clk 0:01:13.6]}
32... Ra8 {[%clk 0:01:21.3]} 33. Rxa8+ {[%clk 0:00:40.6]} 33... Qxa8 {[%clk
0:01:22.2]} 34. e5 {[%clk 0:00:38.4]} 34... Qa4 {[%clk 0:01:09.2]} 35. Qb6
{[%clk 0:00:34.8]} 35... Qa1+ {[%clk 0:00:55.4]} 36. Kh2 {[%clk 0:00:34.4]}
36... Qxe5 {[%clk 0:00:54.2]} 37. Qd8+ {[%clk 0:00:26.9]} 37... Qe8 {[%clk
0:00:54.1]} 38. Qf6 {[%clk 0:00:26.3]} 38... b4 {[%clk 0:00:48.9]} 39. Qxd6
{[%clk 0:00:23.2]} 39... b3 {[%clk 0:00:48.7]} 40. Qb4 {[%clk 0:00:23.6]} 40...
Qh5+ {[%clk 0:00:29]} 41. Kg1 {[%clk 0:00:22.4]} 41... Qxg5 {[%clk 0:00:26.7]}
42. Qxb3 {[%clk 0:00:18.3]} 42... Kg7 {[%clk 0:00:22.6]} 43. Qb7 {[%clk
0:00:17.6]} 43... Qe7 {[%clk 0:00:22]} 44. Qc7 {[%clk 0:00:15.5]} 44... Qf7
{[%clk 0:00:18.2]} 45. Qe5+ {[%clk 0:00:13.4]} 45... Kg6 {[%clk 0:00:16.7]} 46.
d6 {[%clk 0:00:08.8]} 46... Qf5 {[%clk 0:00:14.7]} 47. Qe7 {[%clk 0:00:07.7]}
1-0